bitfinex/quotes_SOLUSD_20230903
["timestamp","ask_amount","ask_price","bid_price","bid_amount"]
[1693740303399,20.0,19.367,19.347,55.0]
[1693740303625,2.99999999,19.366,19.347,55.0]
[1693740308507,20.0,19.367,19.347,55.0]
[1693740308708,2.70174005,19.366,19.347,55.0]
[1693740309913,2.70174005,19.366,19.347,95.53333333]
[1693740318817,20.0,19.367,19.347,95.53333333]
[1693740319322,20.0,19.366,19.347,95.53333333]
[1693740319525,20.0,19.368,19.347,95.53333333]
[1693740319709,2.7511916,19.367,19.347,95.53333333]
[1693740320527,2.99999999,19.368,19.347,95.53333333]
[1693740320717,2.99999999,19.368,19.348,45.74922289]
[1693740321023,11.05199999,19.373,19.349,55.0]
[1693740321207,2.99999999,19.373,19.35,20.0]
[1693740321412,11.05199999,19.373,19.351,55.0]
[1693740321620,11.05199999,19.373,19.352,20.0]
[1693740321821,11.05199999,19.373,19.353,55.0]
[1693740322418,11.05199999,19.373,19.354,20.0]
[1693740322619,9.71588954,19.373,19.355,56.33611045]
[1693740322806,9.71588954,19.373,19.356,20.0]
[1693740323112,9.71588954,19.373,19.357,56.33611045]
[1693740324214,1.66388954,19.373,19.357,56.33611045]
[1693740325325,56.66388954,19.373,19.357,56.33611045]
[1693740325916,1.66388954,19.373,19.357,56.33611045]
[1693740331327,8.052,19.372,19.357,1.33611045]
[1693740331622,144.31585624,19.371,19.352,1.33611045]
[1693740331827,193.643,19.366,19.341,1.33611045]
[1693740332028,172.59998252,19.365,19.341,1.33611045]
[1693740332225,8.058,19.358,19.341,1.33611045]
[1693740332534,29.72288954,19.357,19.339,1.33611045]
[1693740332909,28.059,19.357,19.339,56.33611045]
[1693740333108,28.059,19.357,19.339,1.33611045]
[1693740334410,28.059,19.357,19.336,28.056885]
[1693740334621,28.059,19.357,19.337,21.33611045]
[1693740335817,28.059,19.357,19.338,55.0]
[1693740336121,28.059,19.357,19.339,1.33611045]
[1693740338214,1.13645066,19.356,19.339,1.33611045]
[1693740338813,28.059,19.357,19.339,1.33611045]
[1693740346417,20.0,19.357,19.339,1.33611045]
[1693740346623,20.0,19.358,19.339,1.33611045]
[1693740346823,1.30950199,19.357,19.339,1.33611045]
[1693740347233,1.30950199,19.357,19.339,42.65151892]
[1693740347526,20.0,19.358,19.34,55.0]
[1693740347728,20.0,19.358,19.341,1.33611045]
[1693740353832,1.18942678,19.357,19.341,1.33611045]
[1693740354238,20.0,19.358,19.341,1.33611045]
[1693740354541,28.058,19.358,19.341,1.33611045]
[1693740354727,1.14040174,19.357,19.341,1.33611045]
[1693740355132,1.66388954,19.358,19.341,1.33611045]
[1693740357842,1.66388954,19.358,19.341,21.33611045]
[1693740358055,1.66388954,19.363,19.342,55.0]
[1693740358342,9.71988954,19.363,19.343,21.33611045]
[1693740358533,9.71988954,19.363,19.345,1.33611045]
[1693740358930,1.66388954,19.363,19.345,1.33611045]
[1693740359151,1.66388954,19.363,19.345,21.33611045]
[1693740359357,1.66388954,19.363,19.347,1.33611045]
[1693740362452,99.2017,19.364,19.347,1.33611045]
[1693740363829,1.40335898,19.363,19.347,1.33611045]
[1693740373257,1.40335898,19.363,19.347,16.61222213]
[1693740373455,1.40335898,19.363,19.348,55.0]
[1693740373758,1.40335898,19.363,19.349,1.33611045]
[1693740381055,9.45935898,19.363,19.349,1.33611045]
[1693740381259,92.3018371,19.362,19.34,1.33611045]
[1693740381463,8.059,19.356,19.34,1.33611045]
[1693740381661,96.8886,19.355,19.339,1.33611045]
[1693740382151,0.66388954,19.354,19.339,1.33611045]
[1693740382552,0.66388954,19.355,19.339,1.33611045]
[1693740384668,0.66388954,19.355,19.339,56.33611045]
[1693740384965,29.72288954,19.357,19.339,56.33611045]
[1693740386176,21.66388954,19.357,19.339,56.33611045]
[1693740388765,1.66388954,19.357,19.339,56.33611045]
[1693740388966,20.0,19.356,19.339,56.33611045]
[1693740389172,1.66388954,19.355,19.339,56.33611045]
[1693740389362,1.66388954,19.357,19.339,56.33611045]
[1693740396073,8.059,19.355,19.339,56.33611045]
[1693740396282,1.66388954,19.357,19.339,56.33611045]
[1693740403668,9.72288954,19.357,19.339,56.33611045]
[1693740403870,1.66388954,19.355,19.339,56.33611045]
[1693740404378,81.65187441,19.355,19.339,1.33611045]
[1693740404579,81.65187441,19.355,19.334,21.33611045]
[1693740406777,81.65187441,19.355,19.335,55.0]
[1693740406976,18.59287441,19.355,19.336,21.33611045]
[1693740407173,1.66388954,19.355,19.337,55.0]
[1693740407479,1.66388954,19.355,19.338,1.33611045]
[1693740408179,1.66388954,19.355,19.337,1.33611045]
[1693740408381,1.66388954,19.355,19.335,1.33611045]
[1693740408696,1.66388954,19.357,19.336,20.682655]
[1693740408868,73.96529635,19.357,19.337,1.33611045]
[1693740409373,1.66388954,19.355,19.337,56.33611045]
[1693740409570,9.72388954,19.355,19.337,56.33611045]
[1693740412380,1.66388954,19.355,19.337,56.33611045]
[1693740413375,21.66388954,19.358,19.337,56.33611045]
[1693740478115,21.66388954,19.358,19.337,55.33611045]
[1693740480633,29.72188954,19.358,19.337,55.33611045]
[1693740488833,29.72188954,19.358,19.337,54.83611045]
[1693740489534,1.66388954,19.358,19.337,54.83611045]
[1693740489739,1.66388954,19.358,19.338,20.0]
[1693740489928,3.83871265,19.361,19.338,20.0]
[1693740490435,4.49999999,19.363,19.338,20.0]
[1693740491138,4.49999999,19.363,19.339,55.0]
[1693740491333,4.49999999,19.363,19.34,20.0]
[1693740491524,4.49999999,19.363,19.341,55.0]
[1693740491725,4.49999999,19.363,19.342,20.0]
[1693740492043,4.49999999,19.363,19.343,55.0]
[1693740492222,4.49999999,19.365,19.344,20.0]
[1693740492427,12.55499999,19.365,19.345,55.0]
[1693740492630,12.55499999,19.365,19.346,20.0]
[1693740492828,12.55499999,19.365,19.347,55.0]
[1693740493735,4.49999999,19.365,19.347,55.0]
[1693740501340,4.49999999,19.365,19.346,20.0]
[1693740501546,4.49999999,19.365,19.345,20.0]
[1693740502949,4.49999999,19.365,19.346,55.0]
[1693740508644,12.55499999,19.365,19.346,55.0]
[1693740508846,4.49999999,19.365,19.346,55.0]
[1693740546883,4.49999999,19.374,19.347,20.0]
[1693740547090,4.49999999,19.374,19.348,55.0]
[1693740547284,19.77906974,19.374,19.349,20.0]
[1693740547496,19.77906974,19.374,19.35,55.0]
[1693740547680,19.77906974,19.374,19.351,20.0]
[1693740547881,19.77906974,19.374,19.352,55.0]
[1693740548079,19.77906974,19.374,19.353,20.0]
[1693740548283,19.77906974,19.374,19.354,55.0]
[1693740548886,19.77906974,19.374,19.355,20.0]
[1693740549088,19.77906974,19.374,19.356,55.0]
[1693740552481,36.70805461,19.374,19.356,55.0]
[1693740562505,19.77906974,19.374,19.356,55.0]
[1693740574509,19.77906974,19.374,19.357,55.0]
[1693740574813,19.77906974,19.374,19.355,55.0]
[1693740575016,19.77906974,19.374,19.356,20.0]
[1693740575204,19.77906974,19.374,19.357,55.0]
[1693740577601,4.49999999,19.374,19.357,55.0]
[1693740577820,4.49999999,19.375,19.357,55.0]
[1693740582920,4.49999999,19.375,19.357,95.93023255]
[1693740584729,4.49999999,19.377,19.357,95.93023255]
[1693740584918,39.75116277,19.377,19.357,95.93023255]
[1693740586421,24.49999999,19.377,19.357,95.93023255]
[1693740586626,4.49999999,19.377,19.357,95.93023255]
[1693740594935,4.49999999,19.379,19.357,95.93023255]
[1693740595138,20.3465116,19.379,19.357,95.93023255]
[1693740595436,20.0,19.378,19.357,95.93023255]
[1693740595620,4.49999999,19.377,19.357,95.93023255]
[1693740601324,4.49999999,19.38,19.358,20.0]
[1693740601537,4.49999999,19.38,19.359,55.0]
[1693740601833,4.49999999,19.381,19.36,20.0]
[1693740602038,4.49999999,19.381,19.361,55.0]
[1693740602439,4.49999999,19.381,19.362,52.1155]
[1693740602642,4.49999999,19.381,19.363,55.0]
[1693740602831,4.49999999,19.381,19.364,20.0]
[1693740603144,4.49999999,19.381,19.365,55.0]
[1693740603438,4.49999999,19.381,19.366,20.0]
[1693740603642,4.49999999,19.381,19.367,55.0]
[1693740604037,4.49999999,19.383,19.367,55.0]
[1693740605948,4.49999999,19.383,19.367,110.0]
[1693740607444,21.1477261,19.383,19.367,110.0]
[1693740607645,4.49999999,19.383,19.367,110.0]
[1693740607826,4.49999999,19.384,19.367,110.0]
[1693740608844,4.49999999,19.385,19.367,110.0]
[1693740609029,21.1477261,19.385,19.367,110.0]
[1693740612625,21.1477261,19.385,19.367,150.45018068]
[1693740613440,29.1947261,19.385,19.367,150.45018068]
[1693740613828,21.1477261,19.385,19.367,150.45018068]
[1693740624252,29.1947261,19.385,19.367,150.45018068]
[1693740624556,16.64772611,19.384,19.367,150.45018068]
[1693740624851,4.49999999,19.383,19.367,150.45018068]
[1693740636259,4.49999999,19.383,19.367,95.45018068]
[1693740637057,4.49999999,19.383,19.367,116.10104468]
[1693740638268,21.1477261,19.383,19.363,41.55704697]
[1693740638567,4.49999999,19.381,19.364,20.0]
[1693740639064,4.49999999,19.384,19.364,52.1155]
[1693740639253,76.1477261,19.384,19.364,52.1155]
[1693740639660,76.1477261,19.384,19.365,55.0]
[1693740639969,76.1477261,19.384,19.366,20.0]
[1693740640164,76.1477261,19.384,19.367,55.0]
[1693740643559,16.64772611,19.383,19.367,55.0]
[1693740643871,4.49999999,19.382,19.367,55.0]
[1693740645369,12.54799999,19.382,19.366,20.0]
[1693740645554,84.1957261,19.382,19.363,20.0]
[1693740645959,84.1957261,19.382,19.36,20.0]
[1693740646263,84.1957261,19.382,19.363,41.486835]
[1693740646464,76.1477261,19.382,19.364,20.0]
[1693740646672,76.1477261,19.382,19.365,55.0]
[1693740646973,174.8137261,19.382,19.366,20.0]
[1693740647170,174.8137261,19.382,19.367,55.0]
[1693740647757,182.8617261,19.382,19.367,55.0]
[1693740649274,174.8137261,19.382,19.367,55.0]
[1693740650565,182.8617261,19.382,19.367,55.0]
[1693740653157,174.8137261,19.382,19.367,55.0]
[1693740656079,190.23809367,19.382,19.367,55.0]
[1693740657574,231.37387063,19.382,19.367,55.0]
[1693740658184,118.59036756,19.382,19.367,55.0]
[1693740660590,135.23809367,19.382,19.367,55.0]
[1693740664292,143.28609367,19.382,19.367,55.0]
[1693740665492,135.23809367,19.382,19.367,55.0]
[1693740667996,143.28609367,19.382,19.367,55.0]
[1693740668696,16.64772611,19.381,19.367,55.0]
[1693740668899,4.49999999,19.38,19.367,55.0]
[1693740671288,4.49999999,19.38,19.366,20.0]
[1693740671504,4.49999999,19.38,19.365,20.0]
[1693740672405,4.49999999,19.38,19.366,55.0]
[1693740673413,4.49999999,19.38,19.365,20.0]
[1693740673618,76.1477261,19.38,19.363,20.0]
[1693740673911,76.1477261,19.38,19.361,20.0]
[1693740674699,76.1477261,19.38,19.36,41.040784]
[1693740674908,8.052,19.374,19.357,41.83376354]
[1693740675110,8.052,19.374,19.347,430.5808]
[1693740675111,4.49999999,19.373,19.348,139.81626589]
[1693740675319,12.55199999,19.373,19.349,20.0]
[1693740676199,12.55199999,19.373,19.349,144.20536]
[1693740676515,4.49999999,19.373,19.349,144.20536]
[1693740676718,4.49999999,19.375,19.35,55.0]
[1693740676902,59.49999999,19.375,19.351,20.0]
[1693740677102,76.1477261,19.375,19.352,55.0]
[1693740677302,16.64772611,19.374,19.353,20.0]
[1693740677503,4.49999999,19.373,19.354,55.0]
[1693740677712,29.1997261,19.373,19.355,20.0]
[1693740677911,71.64772611,19.372,19.356,55.0]
[1693740678119,34.074,19.369,19.349,124.20536]
[1693740678306,21.1477261,19.368,19.349,124.20536]
[1693740678614,4.49999999,19.363,19.347,442.09999999]
[1693740678806,4.49999999,19.363,19.347,41.99999999]
[1693740679012,4.49999999,19.363,19.344,15.54390495]
[1693740679213,4.49999999,19.363,19.345,111.647726]
[1693740679715,4.49999999,19.364,19.345,111.647726]
[1693740679915,4.49999999,19.364,19.346,55.0]
[1693740680102,32.55499999,19.366,19.346,55.0]
[1693740680308,12.55499999,19.366,19.346,55.0]
[1693740682420,55.0,19.365,19.345,20.0]
[1693740682719,8.057,19.362,19.34,20.0]
[1693740682926,4.49999999,19.361,19.34,20.0]
[1693740683115,4.49999999,19.361,19.343,55.0]
[1693740683321,4.49999999,19.361,19.344,20.0]
[1693740683517,12.55599999,19.363,19.344,20.0]
[1693740683717,12.55599999,19.363,19.345,55.0]
[1693740683919,12.55599999,19.363,19.346,20.0]
[1693740684111,12.55599999,19.363,19.347,55.0]
[1693740686225,4.49999999,19.363,19.347,55.0]
[1693740686525,59.49999999,19.363,19.347,55.0]
[1693740686723,171.38112807,19.363,19.343,55.0]
[1693740687028,8.058,19.358,19.328,29.683]
[1693740687231,57.63303504,19.357,19.334,0.31003745]
[1693740687420,20.0,19.356,19.334,0.31003745]
[1693740687622,4.49999999,19.355,19.334,0.31003745]
[1693740688132,4.49999999,19.355,19.334,68.26316645]
[1693740688721,4.49999999,19.355,19.335,55.0]
[1693740688922,4.49999999,19.355,19.336,20.0]
[1693740689122,4.49999999,19.355,19.337,55.0]
[1693740700136,4.49999999,19.355,19.337,96.67114787]
[1693740707134,12.55999999,19.355,19.337,41.67114787]
[1693740707442,12.55999999,19.355,19.336,20.0]
[1693740707621,12.55999999,19.355,19.335,20.0]
[1693740707827,12.55999999,19.355,19.335,20.31003745]
[1693740708834,12.55999999,19.355,19.336,55.0]
[1693740715033,12.55999999,19.355,19.335,20.0]
[1693740715447,55.0,19.354,19.335,20.0]
[1693740715646,8.061,19.351,19.334,20.0]
[1693740715943,4.49999999,19.35,19.334,20.31003745]
[1693740717050,8.061,19.351,19.335,55.0]
[1693740717348,8.061,19.351,19.336,20.0]
[1693740717536,4.49999999,19.353,19.337,55.0]
[1693740720250,42.55999999,19.354,19.337,55.0]
[1693740720552,42.55999999,19.354,19.338,4.49999999]
[1693740722238,34.49999999,19.354,19.338,4.49999999]
[1693740723341,42.55999999,19.354,19.338,4.49999999]
[1693740727561,8.06,19.354,19.338,4.49999999]
[1693740730459,60.97636839,19.354,19.338,4.49999999]
[1693740735570,52.91636839,19.354,19.337,4.49999999]
[1693740736656,52.91636839,19.354,19.337,59.49999999]
[1693740738265,60.97636839,19.354,19.337,59.49999999]
[1693740738966,120.21833357,19.354,19.337,4.49999999]
[1693740739168,107.91636839,19.353,19.337,4.49999999]
[1693740739377,8.062,19.35,19.335,4.49999999]
[1693740739578,112.15833357,19.353,19.335,4.49999999]
[1693740740871,112.15833357,19.353,19.335,59.49999999]
[1693740741078,112.15833357,19.353,19.337,4.49999999]
[1693740741264,52.91636839,19.353,19.337,59.49999999]
[1693740744078,60.97636839,19.353,19.337,59.49999999]
[1693740745980,52.91636839,19.353,19.337,59.49999999]
[1693740747480,60.97636839,19.353,19.337,59.49999999]
[1693740747868,91.64772611,19.352,19.337,4.49999999]
[1693740748187,91.64772611,19.352,19.333,28.05688418]
[1693740748188,34.112,19.348,19.333,28.05688418]
[1693740748475,8.064,19.343,19.333,28.05688418]
[1693740748675,8.064,19.345,19.333,28.05688418]
[1693740749382,186.36616518,19.347,19.333,28.05688418]
[1693740749767,186.36616518,19.347,19.334,4.49999999]
[1693740749970,178.30316518,19.347,19.334,4.49999999]
[1693740750283,186.36616518,19.347,19.334,4.49999999]
[1693740750574,186.36616518,19.347,19.333,28.05688418]
[1693740752670,166.36616518,19.347,19.333,28.05688418]
[1693740752979,20.0,19.346,19.334,55.0]
[1693740753185,20.0,19.346,19.335,4.49999999]
[1693740755572,20.0,19.346,19.334,55.0]
[1693740756087,20.0,19.346,19.335,4.49999999]
[1693740784909,20.0,19.346,19.335,2.03855352]
[1693740795237,20.0,19.346,19.334,55.0]
[1693740796625,20.0,19.346,19.335,2.07107982]
[1693740800526,158.30316518,19.347,19.335,2.07107982]
[1693740800828,99.0612,19.347,19.335,22.07107982]
[1693740801029,99.0612,19.347,19.336,55.0]
[1693740801328,23.72890842,19.354,19.337,4.49999999]
[1693740801918,94.3846,19.353,19.337,4.49999999]
[1693740811419,94.3846,19.353,19.337,44.98810753]
[1693740811734,94.3846,19.353,19.339,4.49999999]
[1693740811924,8.06,19.355,19.339,4.49999999]
[1693740813119,99.0734,19.354,19.339,4.49999999]
[1693740825033,99.0734,19.354,19.339,46.16701135]
[1693740825256,99.0734,19.354,19.34,55.0]
[1693740827138,99.0734,19.354,19.341,4.49999999]
[1693740838646,99.0734,19.354,19.34,55.0]
[1693740838841,99.0734,19.354,19.341,2.76754152]
[1693740865176,99.0734,19.354,19.34,4.49999999]
[1693740866481,99.0734,19.354,19.34,59.49999999]
[1693740868579,8.059,19.357,19.34,59.49999999]
[1693740868882,20.0,19.356,19.34,59.49999999]
[1693740869072,28.059,19.356,19.34,59.49999999]
[1693740873080,20.0,19.356,19.34,59.49999999]
[1693740873288,8.059,19.357,19.34,59.49999999]
[1693740873472,20.0,19.356,19.34,59.49999999]
[1693740881915,20.0,19.358,19.34,59.49999999]
[1693740892218,28.058,19.358,19.34,4.49999999]
[1693740892516,8.059,19.356,19.34,4.49999999]
[1693740892900,105.1564,19.355,19.34,4.49999999]
[1693740893712,105.1564,19.355,19.34,59.49999999]
[1693740894115,8.06,19.355,19.34,59.49999999]
[1693740894415,90.177,19.354,19.34,59.49999999]
[1693740894814,8.06,19.355,19.34,59.49999999]
[1693740896515,8.06,19.355,19.337,4.49999999]
[1693740896913,90.2299,19.354,19.337,4.49999999]
[1693740897103,8.061,19.352,19.337,4.49999999]
[1693740897720,8.061,19.352,19.337,59.49999999]
[1693740899714,55.0,19.351,19.337,4.49999999]
[1693740899916,8.063,19.347,19.336,4.49999999]
[1693740900221,8.063,19.347,19.335,4.49999999]
[1693740900924,8.063,19.347,19.335,59.49999999]
[1693740901122,8.063,19.347,19.336,20.0]
[1693740901307,8.062,19.348,19.337,4.49999999]
[1693740901922,8.062,19.348,19.335,4.49999999]
[1693740902308,97.4625,19.347,19.335,4.49999999]
[1693740902519,97.4625,19.347,19.335,59.49999999]
[1693740902821,97.4625,19.347,19.336,20.0]
[1693740903024,8.062,19.348,19.337,4.49999999]
[1693740903215,93.7685,19.347,19.337,4.49999999]
[1693740906818,93.7685,19.347,19.333,28.05688418]
[1693740906819,20.0,19.346,19.333,28.05688418]
[1693740907023,8.064,19.345,19.334,4.49999999]
[1693740907319,8.064,19.345,19.333,28.05688418]
[1693740907518,28.063,19.346,19.333,28.05688418]
[1693740908122,20.0,19.346,19.333,28.05688418]
[1693740908319,118.0271,19.348,19.334,55.0]
[1693740909325,126.0891,19.348,19.335,2.1857839]
[1693740909528,126.0891,19.348,19.334,55.0]
[1693740918139,126.0891,19.348,19.335,2.133233]
[1693740925339,118.0271,19.348,19.335,2.133233]
[1693740925538,126.0901,19.348,19.335,2.133233]
[1693740932955,118.0271,19.348,19.335,2.133233]
[1693740935847,98.0271,19.348,19.335,22.133233]
[1693740936052,26.031,19.362,19.336,55.0]
[1693740936253,91.5485,19.354,19.337,4.49999999]
[1693740936451,45.89202172,19.36,19.337,4.49999999]
[1693740936753,20.0,19.358,19.337,4.49999999]
[1693740937258,90.0005,19.357,19.337,4.49999999]
[1693740937460,75.0,19.356,19.337,4.49999999]
[1693740937956,20.0,19.356,19.337,4.49999999]
[1693740946774,20.0,19.356,19.337,45.45602688]
[1693740947062,20.0,19.356,19.338,55.0]
[1693740947268,20.0,19.356,19.339,4.49999999]
[1693740950554,2.51997296,19.373,19.339,4.49999999]
[1693740950555,56.793,19.369,19.339,57.56646245]
[1693740950760,8.054,19.367,19.34,153.81568535]
[1693740951058,20.0,19.366,19.341,59.49999999]
[1693740951263,28.055,19.366,19.342,73.06646246]
[1693740951466,28.055,19.366,19.343,59.49999999]
[1693740951968,28.055,19.366,19.344,20.0]
[1693740952172,28.055,19.366,19.345,59.49999999]
[1693740952468,28.055,19.366,19.347,4.49999999]
[1693740952673,28.055,19.366,19.347,59.49999999]
[1693740966473,28.055,19.366,19.347,101.31498706]
[1693740970285,20.0,19.366,19.347,101.31498706]
[1693740970474,95.7833,19.367,19.347,101.31498706]
[1693740970785,95.7833,19.367,19.348,25.74922289]
[1693740970993,95.7833,19.367,19.349,59.49999999]
[1693740971194,48.86289712,19.372,19.35,20.0]
[1693740971490,90.9743,19.371,19.351,59.49999999]
[1693740971693,90.9743,19.371,19.352,20.0]
[1693740971881,90.9743,19.371,19.353,59.49999999]
[1693740972083,23.91091471,19.374,19.354,20.0]
[1693740972392,23.91091471,19.374,19.355,55.0]
[1693740972877,23.91091471,19.374,19.356,20.0]
[1693740973079,23.91091471,19.374,19.357,55.0]
[1693740974487,23.91091471,19.374,19.357,52.5]
[1693740981291,8.052,19.374,19.357,52.5]
[1693740982086,49.26253231,19.375,19.357,52.5]
[1693740983292,57.31353231,19.375,19.357,52.5]
[1693740984096,73.11198191,19.375,19.357,52.5]
[1693740984693,73.11198191,19.375,19.357,93.81472868]
[1693740996284,16.64972099,19.374,19.356,20.0]
[1693740996491,8.053,19.371,19.35,24.49999999]
[1693740996695,8.053,19.371,19.35,107.10076299]
[1693740997403,57.31453231,19.373,19.351,55.0]
[1693740997610,55.0,19.372,19.352,24.49999999]
[1693740997793,55.0,19.372,19.353,55.0]
[1693740997990,55.0,19.372,19.354,24.49999999]
[1693740998205,55.0,19.372,19.355,55.0]
[1693740998408,63.053,19.372,19.356,20.0]
[1693740998598,63.053,19.372,19.357,55.0]
[1693741001801,55.0,19.372,19.357,55.0]
[1693741002494,63.052,19.372,19.357,55.0]
[1693741007910,8.052,19.372,19.357,55.0]
[1693741015423,49.26253231,19.373,19.357,55.0]
[1693741015626,55.0,19.372,19.357,55.0]
[1693741017604,63.052,19.372,19.357,55.0]
[1693741031738,55.0,19.372,19.357,55.0]
[1693741035138,49.26253231,19.373,19.357,55.0]
[1693741035346,16.64972099,19.374,19.357,55.0]
[1693741047441,16.64972099,19.374,19.357,95.89302325]
[1693741064159,15.7984496,19.375,19.357,95.89302325]
[1693741126128,16.64972099,19.376,19.357,95.89302325]
[1693741126322,40.80989712,19.377,19.357,95.89302325]
[1693741126630,20.0,19.376,19.357,95.89302325]
[1693741127131,20.0,19.376,19.357,145.15058325]
[1693741131030,20.0,19.376,19.357,95.89302325]
[1693741136936,20.0,19.376,19.357,40.89302325]
[1693741137235,8.052,19.372,19.356,20.0]
[1693741137437,8.052,19.372,19.355,20.0]
[1693741137830,8.052,19.372,19.353,22.05185745]
[1693741138134,8.052,19.372,19.354,49.2506117]
[1693741138338,8.052,19.372,19.355,20.0]
[1693741138519,8.052,19.372,19.354,46.235533]
[1693741138722,8.052,19.372,19.355,75.0]
[1693741142837,8.052,19.374,19.355,75.0]
[1693741144545,24.70172099,19.374,19.355,75.0]
[1693741145839,71.64972099,19.373,19.355,75.0]
[1693741146043,8.053,19.371,19.355,75.0]
[1693741149034,79.70172099,19.373,19.355,75.0]
[1693741156252,16.64972099,19.373,19.355,75.0]
[1693741156548,105.31629143,19.376,19.355,75.0]
[1693741156950,121.96601242,19.376,19.355,75.0]
[1693741157653,130.01701242,19.376,19.355,75.0]
[1693741157840,55.0,19.375,19.355,75.0]
[1693741158040,63.051,19.375,19.355,75.0]
[1693741161837,79.70072099,19.375,19.355,75.0]
[1693741171759,123.52864033,19.375,19.355,75.0]
[1693741172460,68.52864033,19.375,19.355,75.0]
[1693741177567,117.78619967,19.375,19.355,75.0]
[1693741178966,16.64972099,19.374,19.355,75.0]
[1693741179154,24.70172099,19.374,19.355,75.0]
[1693741181179,16.64972099,19.374,19.355,75.0]
[1693741188856,24.70172099,19.374,19.355,75.0]
[1693741190274,16.64972099,19.374,19.355,75.0]
[1693741193278,24.70172099,19.374,19.355,75.0]
[1693741197681,16.64972099,19.374,19.355,75.0]
[1693741213586,43.82791934,19.375,19.355,75.0]
[1693741219277,16.64972099,19.374,19.355,75.0]
[1693741219476,73.95928033,19.374,19.355,75.0]
[1693741219677,73.95928033,19.374,19.355,20.0]
[1693741220006,73.95928033,19.374,19.356,20.0]
[1693741220172,73.95928033,19.374,19.354,22.54906455]
[1693741221895,73.95928033,19.374,19.355,55.0]
[1693741222083,73.95928033,19.374,19.356,20.0]
[1693741222287,49.25755934,19.374,19.357,55.0]
[1693741222486,43.82791934,19.375,19.357,55.0]
[1693741224180,43.82791934,19.375,19.357,110.0]
[1693741227591,20.0,19.376,19.357,110.0]
[1693741227791,20.0,19.379,19.357,110.0]
[1693741228002,36.64972099,19.38,19.357,110.0]
[1693741230388,16.64972099,19.38,19.357,110.0]
[1693741230700,16.64972099,19.38,19.358,20.0]
[1693741230902,16.64972099,19.38,19.359,55.0]
[1693741231201,49.25755934,19.381,19.359,55.0]
[1693741231395,49.25755934,19.381,19.36,20.0]
[1693741231596,49.25755934,19.381,19.361,55.0]
[1693741231792,49.25755934,19.381,19.362,20.0]
[1693741231994,400.1,19.386,19.363,55.0]
[1693741232195,400.1,19.386,19.364,20.0]
[1693741232397,416.74972099,19.386,19.365,55.0]
[1693741232593,16.64972099,19.385,19.366,20.0]
[1693741232794,16.64972099,19.385,19.367,55.0]
[1693741233190,16.64972099,19.385,19.367,110.0]
[1693741238807,65.90728033,19.385,19.367,55.0]
[1693741239114,57.30455934,19.384,19.36,41.62312854]
[1693741239297,16.64972099,19.383,19.361,20.0]
[1693741239920,16.64972099,19.383,19.362,55.0]
[1693741240101,16.64972099,19.383,19.363,20.0]
[1693741240512,16.64972099,19.383,19.364,55.0]
[1693741240703,16.64972099,19.383,19.365,20.0]
[1693741240910,16.64972099,19.383,19.366,55.0]
[1693741241112,49.25755934,19.384,19.366,55.0]
[1693741249301,416.74972099,19.386,19.366,55.0]
[1693741250619,416.74972099,19.386,19.366,97.02479337]
[1693741257314,90.912,19.385,19.366,97.02479337]
[1693741262415,107.56172099,19.385,19.366,97.02479337]
[1693741275629,360.85639492,19.385,19.366,97.02479337]
[1693741320462,368.90339492,19.385,19.366,97.02479337]
[1693741320667,360.85639492,19.385,19.366,97.02479337]
[1693741342391,107.56172099,19.385,19.366,97.02479337]
[1693741344485,418.34790856,19.385,19.366,97.02479337]
[1693741350591,401.69818757,19.385,19.366,97.02479337]
[1693741353291,401.69818757,19.385,19.366,42.02479337]
[1693741353597,16.64594121,19.384,19.363,15.28652554]
[1693741353799,16.64594121,19.384,19.364,20.0]
[1693741354491,24.69294121,19.384,19.364,20.0]